Workbook

Sheet 汇总表
A1: 新建学生公寓
A2: 序号 | B2: 项目名称 | D2: 单位 | E2: 数量 | F2: 备注
A3: 1 | B3: 铝合金纱窗 | D3: 平方米 | E3: =' 纱窗 纱门'!L14+' 纱窗 纱门'!L52 -> 809.25
A4: 2 | B4: 铝合金纱门 | D4: 平方米 | E4: =' 纱窗 纱门'!L13+' 纱窗 纱门'!L51 -> 861.12
A5: 3 | B5: 遮阳窗帘 | D5: 平方米 | E5: =窗帘及窗轨道!I9+窗帘及窗轨道!I21+窗帘及窗轨道!I55 -> 4697.29
A6: 4 | B6: 轨道（单轨） | D6: 平方米 | E6: =窗帘及窗轨道!K9+窗帘及窗轨道!K21+窗帘及窗轨道!K55 -> 1101.91
A7: 5 | B7: 铝合金百叶 | C7: 1.5匹 | D7: 个 | E7: 21.00 | F7: 空调防雨罩
C8: 3匹 | D8: 个 | E8: 10.00
C9: 5匹 | D9: 个 | E9: 15.00
B11: 合计

Sheet 窗帘及窗轨道
A1: 上海政法学院新建学生公寓工程A幢（窗帘、轨道）
A2: 序号 | B2: 楼层 | C2: 房间号 | D2: 窗帘宽度(M) | E2: 窗帘宽度折叠率（1:1.5） | F2: 窗帘高度(M) | G2: 单窗窗帘面积 | H2: 数量 | I2: 面积小计（㎡） | J2: 单窗导轨（M) | K2: 导轨小计（M) | L2: 备注
A3: 1 | B3: 地下一层 | C3: 自习室 | D3: 6 | E3: =D3*1.5 -> 9 | F3: 2.8 | G3: =E3*F3 -> 25.20 | H3: 1 | I3: =G3*H3 -> 25.20 | J3: =D3 -> 6 | K3: =J3*H3 -> 6 | L3: 布+导轨
C4: 活动室 | D4: 6 | E4: =D4*1.5 -> 9 | F4: 2.8 | G4: =E4*F4 -> 25.20 | H4: 1 | I4: 25.20 | J4: 6 | K4: 6 | L4: 布+导轨
C5: 健身房 | D5: 6 | E5: =D5*1.5 -> 9 | F5: 2.8 | G5: =E5*F5 -> 25.20 | H5: 1 | I5: 25.20 | J5: 6 | K5: 6 | L5: 布+导轨
C6: 辅助用房 | D6: 6 | E6: 9 | F6: 2.8 | G6: =E6*F6 -> 25.20 | H6: 1 | I6: 25.20 | J6: 6 | K6: 6 | L6: 布+导轨
A7: 2 | B7: 一层 | C7: 宿舍 | D7: 2.8 | E7: 4.2 | F7: 2.8 | G7: =E7*F7 -> 11.76 | H7: 13 | I7: 152.88 | J7: 2.8 | K7: 36.4 | L7: 布+导轨
A8: 3 | B8: 二-十层 | C8: 宿舍 | D8: 2.8 | E8: 4.2 | F8: 2.8 | G8: 11.76 | H8: =17*9 -> 153 | I8: 1799.28 | J8: 2.8 | K8: 428.4 | L8: 布+导轨
A9: 7 | B9: 合计 | I9: =SUM(I3:I8) -> 2052.96 | K9: =SUM(K3:K8) -> 488.8
A11: 上海政法学院新建学生公寓工程B幢（窗帘、轨道）
A12: 序号 | B12: 楼层 | C12: 房间号 | D12: 窗 帘 | J12: 轨 道 | L12: 备注
D13: 窗帘宽度(M) | E13: 窗帘宽度折叠率（1:1.5） | F13: 窗帘高度(M) | G13: 单窗窗帘面积 | H13: 数量 | I13: 面积小计（㎡） | J13: 单窗导轨（M) | K13: 导轨小计（M)
A14: 1 | B14: 地下一层 | C14: 自习室 | D14: 6 | E14: =D14*1.5 -> 9 | F14: 2.8 | G14: =E14*F14 -> 25.20 | H14: 1 | I14: =G14*H14 -> 25.20 | J14: =D14 -> 6 | K14: =J14*H14 -> 6 | L14: 布+导轨
C15: 活动室 | D15: 6 | E15: =D15*1.5 -> 9 | F15: 2.8 | G15: =E15*F15 -> 25.20 | H15: 1 | I15: 25.20 | J15: 6 | K15: 6 | L15: 布+导轨
C16: 健身房 | D16: 6 | E16: =D16*1.5 -> 9 | F16: 2.8 | G16: =E16*F16 -> 25.20 | H16: 1 | I16: 25.20 | J16: 6 | K16: 6 | L16: 布+导轨
C17: 辅助用房 | D17: 6 | E17: 9 | F17: 2.8 | G17: =E17*F17 -> 25.20 | H17: 1 | I17: 25.20 | J17: 6 | K17: 6 | L17: 布+导轨
A18: 2 | B18: 一层 | C18: 宿舍 | D18: 2.8 | E18: 4.2 | F18: 2.8 | G18: =E18*F18 -> 11.76 | H18: 8 | I18: 94.08 | J18: 2.8 | K18: 22.4 | L18: 布+导轨
C19: 值班室 | D19: 2.8 | E19: 4.2 | F19: 2.8 | G19: =E19*F19 -> 11.76 | H19: 2 | I19: 23.52 | J19: 2.8 | K19: 5.6 | L19: 布+导轨
A20: 3 | B20: 二-十层 | C20: 宿舍 | D20: 2.8 | E20: 4.2 | F20: 2.8 | G20: 11.76 | H20: =17*9 -> 153 | I20: 1799.28 | J20: 2.8 | K20: 428.4 | L20: 布+导轨
B21: 合计 | I21: =SUM(I15:I20) -> 1992.48 | K21: =SUM(K15:K20) -> 474.4
A23: 上海政法学院新建学生公寓工程社区服务中心（窗帘、轨道）
A24: 序号 | B24: 楼层 | C24: 房间号 | D24: 窗 帘 | J24: 轨 道 | L24: 备注
D25: 窗帘宽度(M) | E25: 窗帘宽度折叠率（1:1.5） | F25: 窗帘高度(M) | G25: 单窗窗帘面积 | H25: 数量 | I25: 面积小计（㎡） | J25: 单窗导轨（M) | K25: 导轨小计（M)
A26: 2 | B26: 一层 | C26: 快递网点102 | D26: 1.7 | E26: =D26*1.5 -> 2.55 | F26: 2.8 | G26: =E26*F26 -> 7.14 | H26: 1 | I26: =G26*H26 -> 7.14 | J26: =D26 -> 1.7 | K26: =J26*H26 -> 1.7 | L26: 布+导轨
C27: 快递网点103 | D27: 1.9 | E27: =D27*1.5 -> 2.85 | F27: 2.8 | G27: 7.98 | H27: 1 | I27: 7.98 | J27: =D27 -> 1.9 | K27: 1.9 | L27: 布+导轨
C28: 快递网点104 | D28: 2.1 | E28: =D28*1.5 -> 3.15 | F28: 2.8 | G28: 8.82 | H28: 1 | I28: 8.82 | J28: =D28 -> 2.1 | K28: 2.1 | L28: 布+导轨
C29: 快递网点105 | D29: 2 | E29: =D29*1.5 -> 3 | F29: 2.8 | G29: 8.40 | H29: 1 | I29: 8.40 | J29: =D29 -> 2 | K29: 2 | L29: 布+导轨
C30: 快递网点106 | D30: 1.7 | E30: =D30*1.5 -> 2.55 | F30: 2.8 | G30: 7.14 | H30: 1 | I30: 7.14 | J30: =D30 -> 1.7 | K30: 1.7 | L30: 布+导轨
A31: 3 | C31: 快递网点107 | D31: 3.5 | E31: =D31*1.5 -> 5.25 | F31: 2.8 | G31: 14.70 | H31: 3 | I31: 44.10 | J31: 2.8 | K31: 8.4 | L31: 布+导轨
A32: 4 | C32: 多功能活动室 | D32: 9.1 | E32: 13.65 | F32: 3.2 | G32: 43.68 | H32: 2 | I32: 87.36 | J32: 4.55 | K32: 9.1 | L32: 布+导轨
A33: 5 | D33: 4.25 | E33: 6.375 | F33: 3.2 | G33: =E33*F33 -> 20.40 | H33: 5 | I33: 102.00 | J33: 8.5 | K33: 42.5 | L33: 布+导轨
A34: 6 | D34: 8.8 | E34: 13.2 | F34: 3.2 | G34: 42.24 | H34: 2 | I34: 84.48 | J34: 2.03 | K34: 4.06 | L34: 布+导轨
A35: 11 | B35: 二层 | C35: 情绪小屋 | D35: 3.5 | E35: 5.25 | F35: 2.8 | G35: =E35*F35 -> 14.70 | H35: 1 | I35: 14.70 | J35: 2.85 | K35: 2.85 | L35: 布+导轨
A36: 12 | C36: 个体咨询室 | D36: 2 | E36: 3 | F36: 2.8 | G36: 8.40 | H36: 2 | I36: 16.80 | J36: 2.1 | K36: 4.2 | L36: 布+导轨
A37: 13 | D37: 2.1 | E37: 3.15 | F37: 2.8 | G37: 8.82 | H37: 1 | I37: 8.82 | J37: 1.65 | K37: 1.65 | L37: 布+导轨
A38: 14 | D38: 1.1 | E38: 1.65 | F38: 2.8 | G38: =E38*F38 -> 4.62 | H38: 2 | I38: 9.24 | J38: 1.1 | K38: 2.2 | L38: 布+导轨
A39: 14 | D39: 1.65 | E39: 2.475 | F39: 2.8 | G39: 6.93 | H39: 2 | I39: 13.86 | J39: 1.1 | K39: 2.2 | L39: 布+导轨
A40: 15 | C40: 心理图书室 | D40: 1.7 | E40: 2.55 | F40: 2.8 | G40: 7.14 | H40: 4 | I40: 28.56 | J40: 1.7 | K40: 6.8 | L40: 布+导轨
A41: 16 | D41: 1.7 | E41: 2.55 | F41: 2.8 | G41: 7.14 | H41: 1 | I41: 7.14 | J41: 1.7 | K41: 1.7 | L41: 布+导轨
A42: 17 | C42: 测量室 | D42: 4.7 | E42: 7.05 | F42: 2.8 | G42: 19.74 | H42: 1 | I42: 19.74 | J42: 4.7 | K42: 4.7 | L42: 布+导轨
A43: 18 | C43: 沙盘疗法 | D43: 3.27 | E43: 4.905 | F43: 3.55 | G43: 17.41 | H43: 2 | I43: 34.83 | J43: =D43 -> 3.27 | K43: 6.54 | L43: 布+导轨
A44: 19 | E44: 0 | F44: 4.15 | G44: 0.00 | H44: 2 | I44: 0.00 | J44: 0 | K44: 0 | L44: 布+导轨
A45: 20 | C45: 家校咨询室 | D45: 5.3 | E45: 7.95 | F45: 2.8 | G45: 22.26 | H45: 1 | I45: 22.26 | J45: 5.3 | K45: 5.3 | L45: 布+导轨
A46: 21 | C46: 家校咨询室办公室 | D46: 1.76 | E46: 2.64 | F46: 4.55 | G46: 12.01 | H46: 1 | I46: 12.01 | J46: 1.76 | K46: 1.76 | L46: 布+导轨
A47: 23 | B47: 三层 | C47: 社区管理用房2 | D47: 2.5 | E47: 3.75 | F47: 2.8 | G47: 10.50 | H47: 1 | I47: 10.50 | J47: 2.5 | K47: 2.5 | L47: 布+导轨
A48: 24 | D48: 1.81 | E48: 2.715 | F48: 2.8 | G48: 7.60 | H48: 1 | I48: 7.60 | J48: 1.81 | K48: 1.81 | L48: 布+导轨
A49: 25 | C49: 社区管理用房1 | D49: 1.66 | E49: 2.49 | F49: 2.8 | G49: 6.97 | H49: 2 | I49: 13.94 | J49: 1.66 | K49: 3.32 | L49: 布+导轨
A50: 26 | C50: 辅导员打卡室 | D50: 1.66 | E50: 2.49 | F50: 2.8 | G50: 6.97 | H50: 2 | I50: 13.94 | J50: 1.66 | K50: 3.32 | L50: 布+导轨
A51: 28 | C51: 机关党支部学生社区工作联系点 | D51: 1.6 | E51: 2.4 | F51: 2.8 | G51: 6.72 | H51: 1 | I51: 6.72 | J51: 1.6 | K51: 1.6 | L51: 布+导轨
A52: 29 | D52: 3.8 | E52: 5.7 | F52: 2.8 | G52: 15.96 | H52: 1 | I52: 15.96 | J52: 3.8 | K52: 3.8 | L52: 布+导轨
A53: 30 | D53: 1.8 | E53: 2.7 | F53: 2.8 | G53: 7.56 | H53: 1 | I53: 7.56 | J53: 1.8 | K53: 1.8 | L53: 布+导轨
A54: 31 | C54: 学生社区自主管理委员会 | D54: 3.6 | E54: 5.4 | F54: 2.8 | G54: 15.12 | H54: 2 | I54: 30.24 | J54: 3.6 | K54: 7.2 | L54: 布+导轨
A55: 37 | B55: 合计 | I55: =SUM(I26:I54) -> 651.85 | K55: =SUM(K26:K54) -> 138.71
I58: =I9+I55 -> 2704.81 | K58: =K9+K55 -> 627.51

Sheet 纱窗 纱门
A1: 上海政法学院新建学生公寓工程A幢（纱窗、纱门）
A2: 序号 | B2: 楼层 | C2: 房间号 | D2: 窗（门） 编号 | E2: 窗（门）宽度(M) | F2: 窗（门）高度(M) | G2: 单窗（门） 面积 | H2: 纱窗（门） 宽度 | I2: 纱窗（门） 高度 | J2: 纱窗（门） 面积 | K2: 数量 | L2: 面积小计（㎡） | M2: 备注
A3: 1 | B3: 一层 | C3: 宿舍 | D3: M1827 | E3: 1.80 | F3: 2.70 | G3: =E3*F3 -> 4.86 | H3: 0.90 | I3: 2.20 | J3: =H3*I3 -> 1.98 | K3: 13 | L3: =J3*K3 -> 25.74
A4: 2 | B4: 二层 | C4: 宿舍 | D4: M1827 | E4: 1.80 | F4: 2.70 | G4: =E4*F4 -> 4.86 | H4: 0.90 | I4: 2.20 | J4: =H4*I4 -> 1.98 | K4: 17 | L4: 33.66
A5: 3 | B5: 三层 | C5: 宿舍 | D5: M1827 | E5: 1.80 | F5: 2.70 | G5: 4.86 | H5: 0.90 | I5: 2.20 | J5: 1.98 | K5: 17 | L5: 33.66
A6: 4 | B6: 四层-九层 | C6: 宿舍 | D6: M1827 | E6: 1.80 | F6: 2.70 | G6: 4.86 | H6: 0.90 | I6: 2.20 | J6: 1.98 | K6: =17*6 -> 102 | L6: 201.96
A7: 5 | B7: 十层 | C7: 宿舍 | D7: M1827 | E7: 1.80 | F7: 2.70 | G7: 4.86 | H7: 0.90 | I7: 2.20 | J7: 1.98 | K7: 17 | L7: 33.66
A8: 6 | B8: 一层-十层 | C8: 宿舍 | D8: C0620 | E8: 0.60 | F8: 2.00 | G8: 1.20 | H8: 0.60 | I8: 1.50 | J8: 0.90 | K8: 9 | L8: 8.10
A9: 7 | B9: 一层-十层 | C9: 宿舍 | D9: C1220 | E9: 1.20 | F9: 2.00 | G9: 2.40 | H9: 1.20 | I9: 1.50 | J9: 1.80 | K9: 40 | L9: 72.00
A10: 8 | B10: 一层-十层 | C10: 宿舍 | D10: C2625 | E10: 2.60 | F10: 2.50 | G10: 6.50 | H10: 2.60 | I10: 1.60 | J10: 4.16 | K10: 18 | L10: 74.88
A11: 9 | B11: 一层-十层 | C11: 宿舍 | D11: C13520 | E11: 1.35 | F11: 2.00 | G11: 2.70 | H11: 1.35 | I11: 1.40 | J11: 1.89 | K11: 101 | L11: 190.89
B12: 小计 | K12: =SUM(K3:K11) -> 334 | L12: =SUM(L3:L11) -> 674.55 | M12: A30款合页小平开纱窗
C13: 纱门 | K13: =SUM(K3:K7) -> 166 | L13: =SUM(L3:L7) -> 328.68
C14: 纱窗 | K14: =K12-K13 -> 168 | L14: =SUM(L8:L11) -> 345.87
A16: 上海政法学院新建学生公寓工程B幢（纱窗、纱门）
A17: 序号 | B17: 楼层 | C17: 房间号 | D17: 窗（门） 编号 | E17: 窗（门）宽度(M) | F17: 窗（门）高度(M) | G17: 单窗（门） 面积 | H17: 纱窗（门） 宽度 | I17: 纱窗（门） 高度 | J17: 纱窗（门） 面积 | K17: 数量 | L17: 面积小计（㎡） | M17: 备注
A18: 1 | B18: 一层 | C18: 快递网点 | D18: C1519 | E18: 1.50 | F18: 1.90 | G18: =E18*F18 -> 2.85 | H18: =E18 -> 1.50 | I18: 1.90 | J18: =H18*I18 -> 2.85 | K18: 4 | L18: =J18*K18 -> 11.40
A19: 2 | D19: C1315 | E19: 1.35 | F19: 1.50 | G19: 2.03 | H19: 1.35 | I19: =F19 -> 1.50 | J19: 2.03 | K19: 3 | L19: 6.08
A20: 3 | C20: 多功能活动室 | D20: C3627 | E20: 3.65 | F20: 1.90 | G20: 6.94 | H20: 3.65 | I20: =F20 -> 1.90 | J20: 6.94 | K20: 2 | L20: 13.87
A21: 4 | D21: C8528 | E21: 8.50 | F21: 1.20 | G21: 10.20 | H21: 8.50 | I21: =F21 -> 1.20 | J21: 10.20 | K21: 1 | L21: 10.20
A22: 5 | D22: C4527 | E22: 4.50 | F22: 2.05 | G22: 9.23 | H22: 4.50 | I22: 2.05 | J22: 9.23 | K22: 2 | L22: 18.45
A23: 6 | C23: 男女生门卫 | D23: C2423 | E23: 2.40 | F23: 1.40 | G23: 3.36 | H23: 2.40 | I23: 1.40 | J23: 3.36 | K23: 2 | L23: 6.72
A24: 7 | C24: 宿舍 | D24: M1827C | E24: 1.80 | F24: 2.70 | G24: 4.86 | H24: 1.80 | I24: 2.70 | J24: 4.86 | K24: 17 | L24: 82.62
A25: 8 | B25: 二层 | C25: 情绪小屋 | D25: C1315 | E25: 1.30 | F25: 1.50 | G25: 1.95 | H25: 1.30 | I25: 1.50 | J25: 1.95 | K25: 2 | L25: 3.90
A26: 9 | C26: 个体咨询室 | D26: C1519 | E26: 1.50 | F26: 1.90 | G26: 2.85 | H26: 1.50 | I26: 1.90 | J26: 2.85 | K26: 2 | L26: 5.70
A27: 10 | D27: C1315 | E27: 1.30 | F27: 1.50 | G27: 1.95 | H27: 1.30 | I27: 1.50 | J27: 1.95 | K27: 2 | L27: 3.90
A28: 11 | D28: C0818 | E28: 0.80 | F28: 1.80 | G28: 1.44 | H28: 0.80 | I28: 1.30 | J28: 1.04 | K28: 2 | L28: 2.08
A29: 12 | C29: 心理图书室 | D29: C1525 | E29: 1.50 | F29: 2.50 | G29: 3.75 | H29: 1.50 | I29: 1.90 | J29: 2.85 | K29: 4 | L29: 11.40
A30: 13 | D30: C14625 | E30: 1.46 | F30: 2.50 | G30: 3.65 | H30: 1.46 | I30: 0.60 | J30: 0.88 | K30: 1 | L30: 0.88
A31: 14 | C31: 测量室 | D31: C1515 | E31: 1.50 | F31: 1.50 | G31: 2.25 | H31: 1.50 | I31: 1.50 | J31: 2.25 | K31: 1 | L31: 2.25
A32: 15 | C32: 宿舍 | D32: M1827 | E32: 1.80 | F32: 2.70 | G32: 4.86 | H32: 1.80 | I32: 2.70 | J32: 4.86 | K32: 17 | L32: 82.62
A33: 16 | B33: 三层 | C33: 社区管理用房2 | D33: C2218a | E33: 2.20 | F33: 1.80 | G33: 3.96 | H33: 1.10 | I33: 1.20 | J33: 1.32 | K33: 1 | L33: 1.32
A34: 17 | D34: C1525 | E34: 1.50 | F34: 2.50 | G34: 3.75 | H34: 1.50 | I34: 1.90 | J34: 2.85 | K34: 1 | L34: 2.85
A35: 18 | C35: 社区管理用房1 | D35: C1525 | E35: 1.50 | F35: 2.50 | G35: 3.75 | H35: 1.50 | I35: 1.90 | J35: 2.85 | K35: 2 | L35: 5.70
A36: 19 | C36: 辅导员打卡室 | D36: C14625a | E36: 1.46 | F36: 2.50 | G36: 3.65 | H36: 1.46 | I36: 0.60 | J36: 0.88 | K36: 1 | L36: 0.88
A37: 20 | D37: C1525 | E37: 1.50 | F37: 2.50 | G37: 3.75 | H37: 1.50 | I37: 1.90 | J37: 2.85 | K37: 1 | L37: 2.85
A38: 21 | C38: 机关党支部学生社区工作联系点 | D38: C1319 | E38: 1.30 | F38: 1.90 | G38: 2.47 | H38: 1.30 | I38: 1.30 | J38: 1.69 | K38: 1 | L38: 1.69
A39: 22 | D39: C14619 | E39: 1.46 | F39: 1.90 | G39: 2.77 | H39: 1.46 | I39: 1.30 | J39: 1.90 | K39: 1 | L39: 1.90
A40: 23 | C40: 学生社区自主管理委员会 | D40: C1522 | E40: 1.46 | F40: 2.20 | G40: 3.21 | H40: 1.46 | I40: 0.60 | J40: 0.88 | K40: 2 | L40: 1.75
A41: 24 | D41: C1515c | E41: 1.46 | F41: 1.51 | G41: 2.20 | H41: 1.46 | I41: 0.60 | J41: 0.88 | K41: 2 | L41: 1.75
A42: 25 | C42: 宿舍 | D42: M1827C | E42: 1.80 | F42: 2.70 | G42: 4.86 | H42: 1.80 | I42: 2.70 | J42: 4.86 | K42: 17 | L42: 82.62
A43: 26 | B43: 四层 | C43: 宿舍 | D43: M1827 | E43: 1.80 | F43: 2.70 | G43: 4.86 | H43: 1.80 | I43: 2.70 | J43: 4.86 | K43: 17 | L43: 82.62
A44: 27 | B44: 五层-九层 | C44: 宿舍 | D44: M1827 | E44: 1.80 | F44: 2.70 | G44: =E44*F44 -> 4.86 | H44: 0.90 | I44: 2.20 | J44: =H44*I44 -> 1.98 | K44: =17*5 -> 85 | L44: 168.30
A45: 28 | B45: 十层 | C45: 宿舍 | D45: M1827 | E45: 1.80 | F45: 2.70 | G45: =E45*F45 -> 4.86 | H45: 0.90 | I45: 2.20 | J45: =H45*I45 -> 1.98 | K45: 17 | L45: 33.66
A46: 6 | B46: 一层-十层 | C46: 宿舍 | D46: C0620 | E46: 0.60 | F46: 2.00 | G46: 1.20 | H46: 0.60 | I46: 1.50 | J46: 0.90 | K46: 9 | L46: 8.10
A47: 7 | B47: 一层-十层 | C47: 宿舍 | D47: C1220 | E47: 1.20 | F47: 2.00 | G47: 2.40 | H47: 1.20 | I47: 1.50 | J47: 1.80 | K47: 40 | L47: 72.00
A48: 8 | B48: 一层-十层 | C48: 宿舍 | D48: C2625 | E48: 2.60 | F48: 2.50 | G48: 6.50 | H48: 2.60 | I48: 1.60 | J48: 4.16 | K48: 18 | L48: 74.88
A49: 29 | B49: 一层-十层 | C49: 宿舍 | D49: C13520 | E49: 1.35 | F49: 2.00 | G49: 2.70 | H49: 1.35 | I49: 1.40 | J49: 1.89 | K49: 101 | L49: 190.89
B50: 小计 | L50: =SUM(L18:L49) -> 995.82 | M50: A30款合页小平开纱窗
B51: 其中 | C51: 纱门 | L51: =L24+L32+L42+L43+L44+L45 -> 532.44
C52: 纱窗 | L52: =L50-L51 -> 463.38

Sheet 空调防雨罩
A1: 空调防雨罩 （铝合金百叶）
A2: 序号 | B2: 项目名称 | C2: 规格 | E2: 单位 | F2: 数量 | G2: 备注
A3: 1 | B3: 空调防雨罩 | C3: 1.5匹 | D3: 110*60*80cm | E3: 个 | F3: 21.00
A4: 2 | B4: 空调防雨罩 | C4: 3匹 | D4: 110*70*120cm | E4: 个 | F4: 10.00
A5: 3 | B5: 空调防雨罩 | C5: 5匹 | D5: 120*70*150cm | E5: 个 | F5: 15.00
B7: 合计
